bitfinex/quotes_BTCUSD_20230117
["timestamp","ask_amount","ask_price","bid_price","bid_amount"]
[1673969188517,0.077,21315.0,21314.0,0.07014751]
[1673969188771,0.077,21315.0,21314.0,0.00362751]
[1673969189791,0.077,21315.0,21314.0,0.07014751]
[1673969190045,0.077,21315.0,21314.0,0.93550851]
[1673969190835,0.077,21315.0,21314.0,0.61422251]
[1673969191090,0.077,21315.0,21313.0,0.55356224]
[1673969191350,0.469127,21317.0,21313.0,0.55356224]
[1673969191609,0.938257,21317.0,21313.0,0.55356224]
[1673969191861,0.072,21315.0,21314.0,0.002]
[1673969192116,0.938257,21317.0,21314.0,0.06652]
[1673969192117,0.938248,21317.0,21314.0,0.06652]
[1673969192375,1.010248,21317.0,21314.0,0.06652]
[1673969193417,0.8310723,21316.0,21313.0,0.01148024]
[1673969193681,0.321286,21315.0,21313.0,0.01148024]
[1673969193938,0.321286,21314.0,21313.0,0.00948024]
[1673969194228,0.469175,21314.0,21313.0,0.00948024]
[1673969194757,0.469175,21314.0,21313.0,0.01148024]
[1673969195010,0.469175,21314.0,21313.0,0.07600024]
[1673969195281,0.072,21314.0,21313.0,0.07800024]
[1673969196334,0.072,21314.0,21313.0,0.00948024]
[1673969196604,0.072,21314.0,21313.0,0.01148024]
[1673969196914,1.3193663,21316.0,21313.0,0.07600024]
[1673969197192,0.072,21314.0,21313.0,0.26872619]
[1673969197459,0.072,21314.0,21313.0,0.62209424]
[1673969197721,0.072,21314.0,21313.0,1.41257724]
[1673969198240,0.469103,21318.0,21314.0,0.31273965]
[1673969198509,0.072,21316.0,21315.0,1.52520795]
[1673969198762,0.072,21316.0,21315.0,1.409182]
[1673969199297,0.94954636,21319.0,21315.0,0.940034]
[1673969199584,0.469089,21318.0,21315.0,0.73457395]
[1673969199844,0.469089,21318.0,21315.0,0.543848]
[1673969200113,0.072,21316.0,21315.0,0.545848]
[1673969200365,0.60913264,21318.0,21315.0,0.543848]
[1673969200656,0.469089,21318.0,21315.0,0.66187395]
[1673969201127,1.089591,21319.0,21315.0,0.938301]
[1673969201149,0.072,21318.0,21315.0,0.940301]
[1673969201647,0.20381245,21318.0,21315.0,0.471148]
[1673969201903,0.68113264,21318.0,21315.0,0.002]
[1673969202169,0.541089,21318.0,21315.0,0.002]
[1673969202679,0.541089,21318.0,21315.0,0.47115]
[1673969204886,0.68113264,21318.0,21315.0,0.002]
[1673969205166,1.15021964,21318.0,21315.0,0.002]
[1673969205417,1.36028965,21318.0,21315.0,0.002]
[1673969205675,1.61492963,21318.0,21315.0,0.002]
[1673969205923,1.15021964,21318.0,21315.0,0.002]
[1673969206731,0.21204364,21318.0,21316.0,0.19072595]
[1673969206989,0.072,21318.0,21317.0,1.409104]
[1673969207245,0.072,21318.0,21317.0,1.59982995]
[1673969207494,0.072,21318.0,21317.0,1.409104]
[1673969208016,0.81913165,21322.0,21317.0,1.409104]
[1673969208270,0.81913165,21322.0,21321.0,0.0749]
[1673969208271,0.14004364,21322.0,21321.0,0.0749]
[1673969208534,0.14004364,21323.0,21321.0,1.59985395]
[1673969208838,0.50024245,21324.0,21322.0,0.470786]
[1673969208839,0.01007465,21324.0,21322.0,0.470786]
[1673969209073,0.15011829,21324.0,21323.0,0.321286]
[1673969209312,0.15011829,21324.0,21323.0,0.396186]
[1673969209579,0.15011829,21324.0,21323.0,0.0749]
[1673969209855,0.3601883,21324.0,21323.0,0.0749]
[1673969210331,0.4251883,21324.0,21323.0,0.0749]
[1673969210336,0.21511829,21324.0,21323.0,0.0749]
[1673969210588,0.21511829,21324.0,21323.0,0.002]
[1673969210589,0.8291433,21324.0,21323.0,0.002]
[1673969210841,0.8941433,21324.0,21323.0,0.002]
[1673969211094,0.68407329,21324.0,21323.0,0.002]
[1673969211349,0.68407329,21324.0,21323.0,0.06852]
[1673969211612,0.54402965,21324.0,21323.0,0.06852]
[1673969212130,0.07507465,21324.0,21323.0,0.14332]
[1673969214698,0.07507465,21324.0,21323.0,0.14332]
[1673969214964,0.07507465,21324.0,21323.0,0.0768]
[1673969216615,0.07507465,21324.0,21323.0,0.398086]
[1673969217386,0.07507465,21324.0,21323.0,0.867063]
[1673969217915,0.07507465,21324.0,21323.0,0.3979753]
[1673969218470,0.07507465,21324.0,21323.0,1.65614896]
[1673969218730,0.0749665,21324.0,21323.0,1.65614896]
[1673969219511,0.0749665,21324.0,21323.0,1.65506175]
[1673969219769,0.0699665,21324.0,21323.0,1.65506175]
[1673969225012,0.0699665,21324.0,21323.0,1.93936175]
[1673969227613,0.0699665,21324.0,21323.0,1.65486175]
[1673969230227,0.0699665,21324.0,21323.0,1.58006175]
[1673969230490,0.0699665,21324.0,21323.0,0.39678809]
[1673969230763,0.0699665,21324.0,21323.0,0.07550209]
[1673969234415,2.14407222,21324.0,21323.0,0.00080209]
[1673969234671,2.25364643,21324.0,21323.0,0.00080209]
[1673969234926,1.95364643,21324.0,21323.0,0.00080209]
[1673969236985,2.39369007,21324.0,21323.0,0.00080209]
[1673969237499,1.80364643,21324.0,21323.0,0.00080209]
[1673969237749,2.34369007,21324.0,21323.0,0.00080209]
[1673969238016,2.55376008,21324.0,21323.0,0.00080209]
[1673969238271,2.24369007,21324.0,21323.0,0.00080209]
[1673969238526,2.45376008,21324.0,21323.0,0.00080209]
[1673969239029,2.15376008,21324.0,21323.0,0.00080209]
[1673969239284,1.80364643,21324.0,21323.0,0.00080209]
[1673969239547,1.48236043,21324.0,21323.0,0.06732209]
[1673969239817,0.54445043,21324.0,21323.0,0.06732209]
[1673969240130,0.0699665,21324.0,21323.0,0.61119909]
[1673969240367,0.0699665,21324.0,21323.0,1.40146209]
[1673969240855,0.0699665,21324.0,21323.0,1.59218804]
[1673969241110,0.0699665,21324.0,21323.0,1.78486209]
[1673969241872,0.0049665,21324.0,21323.0,1.78406]
[1673969242139,0.0109665,21324.0,21323.0,1.96406]
[1673969242708,0.0109665,21324.0,21323.0,1.51406]
[1673969244274,0.0109665,21324.0,21323.0,0.492706]
[1673969244499,0.0109665,21324.0,21323.0,0.41769142]
[1673969245006,0.0109665,21324.0,21323.0,0.56538242]
[1673969245286,0.0109665,21324.0,21323.0,0.93116842]
[1673969245287,0.0049665,21324.0,21323.0,0.93116842]
[1673969245560,0.0049665,21324.0,21323.0,0.95816842]
[1673969245803,0.0109665,21324.0,21323.0,0.93116842]
[1673969246060,0.0739665,21324.0,21323.0,0.93416842]
[1673969246311,0.0049665,21324.0,21323.0,0.93116842]
[1673969246586,0.0069665,21324.0,21323.0,0.94416842]
[1673969246824,0.0049665,21324.0,21323.0,0.93116842]
[1673969247080,0.0049665,21324.0,21323.0,0.60988242]
[1673969247895,0.0679665,21324.0,21323.0,0.61288242]
[1673969248105,0.0049665,21324.0,21323.0,0.60988242]
[1673969248365,0.0069665,21324.0,21323.0,0.62288242]
[1673969248617,0.0069665,21324.0,21323.0,0.0745]
[1673969248618,0.13677895,21324.0,21323.0,0.0745]
[1673969248884,1.46720614,21324.0,21323.0,0.003]
[1673969249232,1.14592014,21324.0,21323.0,0.003]
[1673969249446,2.12502215,21324.0,21323.0,0.003]
[1673969249698,1.75481374,21324.0,21319.0,0.938098]
[1673969249969,0.27218061,21323.0,21319.0,0.938098]
[1673969250491,0.74116161,21323.0,21319.0,1.012998]
[1673969250763,0.95171506,21323.0,21319.0,1.012998]
[1673969251009,0.81990261,21323.0,21319.0,1.012998]
[1673969251267,0.21133466,21324.0,21322.0,0.0749]
[1673969251538,0.0049665,21324.0,21323.0,0.790263]
[1673969251872,0.0049665,21324.0,21323.0,0.865163]
[1673969252109,0.0049665,21324.0,21323.0,1.33414]
[1673969252847,0.0679665,21324.0,21323.0,1.33714]
[1673969254432,0.0679665,21324.0,21323.0,0.868163]
[1673969254685,0.0679665,21324.0,21323.0,0.546877]
[1673969254936,0.20833466,21324.0,21323.0,0.546877]
[1673969255475,0.0679665,21324.0,21323.0,0.546877]
[1673969257060,0.20833466,21324.0,21323.0,0.003]
[1673969257304,0.55861774,21324.0,21323.0,0.003]
[1673969257553,1.02759576,21324.0,21323.0,0.003]
[1673969257827,1.49655076,21324.0,21323.0,0.003]
[1673969258348,1.28597429,21324.0,21323.0,0.003]
[1673969258615,1.84507433,21324.0,21323.0,0.003]
[1673969258866,1.28661112,21324.0,21323.0,0.003]
[1673969259187,1.80450983,21324.0,21323.0,0.003]
[1673969259434,2.12579583,21324.0,21323.0,0.003]
[1673969260498,1.77514978,21324.0,21323.0,0.003]
[1673969260748,0.88782252,21324.0,21323.0,0.003]
[1673969261028,0.41886752,21324.0,21323.0,0.003]
[1673969261538,0.20832553,21324.0,21323.0,0.003]
[1673969261795,0.20832553,21324.0,21323.0,0.06952]
[1673969262054,0.0679665,21324.0,21323.0,0.612797]
[1673969262510,0.0679665,21324.0,21323.0,0.934083]
[1673969262769,0.0679665,21324.0,21323.0,1.40306]
[1673969263296,0.0679665,21324.0,21323.0,1.47766]
[1673969264858,0.0679665,21324.0,21323.0,1.40336]
[1673969267816,0.0679665,21324.0,21323.0,1.39838353]
[1673969270534,0.0679665,21324.0,21323.0,1.33384]
[1673969270787,0.0679665,21324.0,21323.0,0.543577]
[1673969271846,0.0679665,21324.0,21323.0,1.33384]
[1673969272378,0.0679665,21324.0,21323.0,1.40844]
[1673969273950,0.0679665,21324.0,21323.0,1.33384]
[1673969274491,0.0679665,21324.0,21323.0,0.864863]
[1673969274747,0.0679665,21324.0,21323.0,0.395886]
[1673969274997,0.0679665,21324.0,21323.0,0.0746]
[1673969275800,0.66873395,21324.0,21321.0,0.543504]
[1673969276053,0.66873395,21324.0,21320.0,0.469026]
[1673969276054,0.14039412,21323.0,21320.0,0.469026]
[1673969276303,0.27220657,21323.0,21320.0,0.469026]
[1673969276575,0.14039412,21323.0,21320.0,0.469026]
[1673969276839,0.98195508,21324.0,21320.0,0.469026]
[1673969277098,0.14039412,21323.0,21320.0,0.938069]
[1673969277599,0.23139412,21323.0,21320.0,0.938069]
[1673969277857,0.14039412,21323.0,21320.0,0.938069]
[1673969278659,0.23139412,21323.0,21320.0,0.938069]
[1673969279156,0.091,21323.0,21320.0,0.938069]
[1673969280173,0.091,21323.0,21321.0,0.0748]
[1673969280421,0.091,21323.0,21322.0,1.334184]
[1673969280937,0.56912911,21324.0,21322.0,1.012898]
[1673969281182,0.091,21323.0,21322.0,1.012898]
[1673969281437,0.56912911,21324.0,21322.0,1.012898]
[1673969281709,0.092,21323.0,21322.0,1.012898]
[1673969282017,0.56912911,21324.0,21322.0,1.012898]
[1673969282252,0.8716711,21324.0,21322.0,1.012898]
[1673969282496,0.14039412,21323.0,21322.0,1.012898]
[1673969282758,0.14039412,21323.0,21322.0,0.543899]
[1673969283038,0.71254707,21323.0,21315.0,1.14813612]
[1673969283316,0.71254707,21323.0,21315.0,0.33386764]
[1673969283317,0.14049505,21321.0,21315.0,0.33386764]
[1673969283612,0.14049505,21319.0,21315.0,0.19394495]
[1673969283864,0.35123763,21317.0,21315.0,0.19394495]
[1673969284126,0.45309845,21316.0,21315.0,0.19394495]
[1673969284377,0.321286,21316.0,21315.0,0.19394495]
[1673969284925,0.938262,21316.0,21315.0,0.19394495]
[1673969285191,1.259548,21316.0,21315.0,0.19394495]
[1673969285449,1.40004305,21316.0,21314.0,0.00989058]
[1673969285701,0.321286,21315.0,21314.0,0.00989058]
[1673969285980,1.7463638,21315.0,21314.0,0.00989058]
[1673969286261,2.50071398,21315.0,21314.0,0.00989058]
[1673969286518,2.22238563,21315.0,21314.0,0.00989058]
[1673969286773,2.95956897,21315.0,21314.0,0.00989058]
[1673969287024,3.24521155,21315.0,21314.0,0.00989058]
[1673969287304,3.3857066,21315.0,21314.0,0.00989058]
[1673969287563,0.15,21314.0,21313.0,0.0074559]
[1673969287818,3.03461177,21314.0,21313.0,0.0074559]
[1673969288071,3.06367038,21314.0,21313.0,0.0074559]
[1673969288325,2.85365319,21314.0,21313.0,0.0074559]
[1673969288725,2.94565319,21314.0,21313.0,0.0074559]
[1673969288959,2.47155102,21314.0,21313.0,0.0074559]
[1673969289177,0.15,21313.0,21305.0,0.10057327]
[1673969289390,0.15,21313.0,21308.0,0.0749]
[1673969289391,0.46925,21311.0,21308.0,0.0749]
[1673969290286,0.46925,21311.0,21307.0,0.0749]
[1673969290497,0.60106245,21311.0,21307.0,0.0749]
[1673969290713,1.13699614,21311.0,21307.0,0.0749]
[1673969290932,0.38280055,21310.0,21307.0,0.0749]
[1673969291377,0.85206755,21310.0,21307.0,0.0749]
[1673969292026,0.38280055,21310.0,21307.0,0.0749]
[1673969292915,0.47480055,21310.0,21307.0,0.0749]
[1673969293573,0.94407155,21310.0,21307.0,0.0749]
[1673969293836,1.41333455,21310.0,21307.0,0.0749]
[1673969294074,0.94407155,21310.0,21307.0,0.26562595]
[1673969294286,0.94407155,21310.0,21308.0,0.396186]
[1673969294287,0.47480055,21310.0,21308.0,0.396186]
[1673969294543,0.47480055,21310.0,21309.0,0.321286]
[1673969295142,0.47480055,21310.0,21308.0,0.0749]
[1673969295644,0.38280055,21310.0,21308.0,0.0749]
[1673969295907,1.54294078,21310.0,21308.0,0.0749]
[1673969296171,1.41333255,21310.0,21305.0,0.0749]
[1673969296439,0.57581864,21309.0,21305.0,0.0749]
[1673969296709,1.07043445,21308.0,21305.0,0.0749]
[1673969296966,0.13181245,21307.0,21305.0,0.0749]
[1673969297229,1.46670045,21306.0,21304.0,0.00998553]
[1673969297505,0.321286,21305.0,21304.0,0.00998553]
[1673969297994,0.938718,21306.0,21304.0,0.00998553]
[1673969298808,0.321286,21305.0,21304.0,0.00998553]
[1673969299053,0.092,21305.0,21304.0,0.00998553]
[1673969299303,0.42368342,21305.0,21304.0,0.00998553]
[1673969299554,1.02929616,21305.0,21304.0,0.00998553]
[1673969299825,1.36242942,21305.0,21304.0,0.00998553]
[1673969300101,1.68371542,21305.0,21304.0,0.00998553]
[1673969300366,1.77571542,21305.0,21304.0,0.00998553]
[1673969301140,1.45442942,21305.0,21304.0,0.00998553]
[1673969301430,1.68371542,21305.0,21304.0,0.00998553]
[1673969301635,1.77571542,21305.0,21304.0,0.00998553]
[1673969301897,1.68371542,21305.0,21304.0,0.00998553]
[1673969302165,1.45442942,21305.0,21304.0,0.00998553]
[1673969302424,1.77571542,21305.0,21304.0,0.00998553]
[1673969302713,1.45442942,21305.0,21304.0,0.00998553]
[1673969302950,1.30634242,21305.0,21304.0,0.00998553]
[1673969303234,0.51568342,21305.0,21304.0,0.07650553]
[1673969303497,0.42368342,21305.0,21304.0,0.07650553]
[1673969303759,0.51568342,21305.0,21304.0,0.00998553]
[1673969306166,0.092,21305.0,21304.0,0.15100553]
[1673969306420,0.092,21305.0,21304.0,0.08448553]
[1673969307471,0.092,21305.0,21304.0,1.34456153]
[1673969308587,1.40713134,21309.0,21304.0,1.34456153]
[1673969308849,0.004,21305.0,21304.0,0.95577553]
[1673969309109,1.8717585,21309.0,21304.0,1.02367553]
[1673969309403,0.057,21305.0,21304.0,0.94977553]
[1673969309665,1.4024565,21309.0,21304.0,1.02367553]
[1673969309931,1.02182934,21309.0,21305.0,0.0743]
[1673969310197,1.02182934,21309.0,21306.0,0.469348]
[1673969311027,0.55253034,21309.0,21306.0,0.469348]
[1673969311530,1.89771742,21309.0,21305.0,0.543654]
[1673969311788,2.36234458,21309.0,21304.0,0.55526153]
[1673969312044,0.45309845,21308.0,21304.0,0.55526153]
[1673969312294,0.60114045,21308.0,21304.0,0.55526153]
[1673969312797,1.26023119,21308.0,21304.0,0.08588553]
[1673969313321,0.321286,21307.0,21304.0,0.01098553]
[1673969313570,1.259988,21306.0,21304.0,0.01098553]
[1673969313829,0.938702,21306.0,21304.0,0.00998553]
[1673969315146,1.028702,21306.0,21304.0,0.00998553]
[1673969316957,1.36268163,21306.0,21304.0,0.00998553]
[1673969317206,0.73865095,21305.0,21304.0,0.00990069]
[1673969317759,1.67739695,21305.0,21304.0,0.00990069]
[1673969318587,1.35611095,21305.0,21304.0,0.00990069]
[1673969318841,2.67261048,21305.0,21304.0,0.00990069]
[1673969319108,3.91182724,21305.0,21304.0,0.00990069]
[1673969319361,3.5534988,21305.0,21304.0,0.00990069]
[1673969322305,1.804635,21300.0,21299.0,0.01125597]
[1673969322824,2.04656122,21300.0,21299.0,0.01125597]
[1673969323081,3.14646385,21300.0,21299.0,0.01125597]
[1673969323339,3.04646385,21300.0,21299.0,0.01125597]
[1673969323612,3.19646385,21300.0,21299.0,0.01125597]
[1673969323871,3.13746385,21300.0,21299.0,0.01125597]
[1673969324137,3.04646385,21300.0,21299.0,0.01125597]
[1673969324387,3.61156602,21300.0,21299.0,0.01125597]
[1673969324664,3.13746385,21300.0,21299.0,0.01125597]
[1673969324991,3.13746385,21300.0,21292.0,0.0749]
[1673969324992,0.45801061,21299.0,21292.0,0.0749]
[1673969325195,0.59438411,21298.0,21292.0,0.0749]
[1673969325451,1.85477211,21297.0,21292.0,0.0749]
[1673969325714,1.85477211,21297.0,21291.0,0.75615452]
[1673969325715,0.13181245,21296.0,21291.0,0.939322]
[1673969325965,0.93214566,21296.0,21295.0,0.01125597]
[1673969326229,0.469574,21296.0,21295.0,0.01125597]
[1673969326741,0.939145,21296.0,21295.0,0.01125597]
[1673969327002,1.351431,21296.0,21295.0,0.01125597]
[1673969327262,1.351431,21296.0,21294.0,0.0745]
[1673969327263,0.091,21296.0,21294.0,0.0745]
[1673969327567,0.091,21296.0,21294.0,0.544103]
[1673969327785,0.091,21296.0,21295.0,0.321286]
[1673969328332,0.091,21296.0,21294.0,1.013713]
[1673969328594,0.091,21296.0,21295.0,0.321286]
[1673969329125,0.469539,21298.0,21294.0,0.544097]
[1673969329379,0.469539,21298.0,21294.0,1.20442195]
[1673969329380,0.091,21296.0,21294.0,1.20442195]
[1673969329629,0.43485096,21297.0,21294.0,0.544097]
[1673969329878,0.43485096,21297.0,21293.0,0.469622]
[1673969329879,0.091,21296.0,21293.0,0.469622]
[1673969330174,0.560573,21296.0,21292.0,0.75000735]
[1673969330417,1.07095645,21296.0,21292.0,1.14475435]
[1673969330663,0.90441596,21297.0,21293.0,0.321286]
[1673969330915,0.43485096,21297.0,21294.0,0.321286]
[1673969331175,0.43485096,21297.0,21294.0,0.66033695]
[1673969331447,0.43485096,21297.0,21295.0,0.396186]
[1673969331709,0.43485096,21297.0,21296.0,0.790857]
[1673969331955,1.34386,21302.0,21296.0,1.335328]
[1673969331956,0.86478803,21302.0,21296.0,1.335328]
[1673969332238,0.86478803,21302.0,21300.0,0.0749]
[1673969332491,0.86478803,21302.0,21300.0,0.26562595]
[1673969333057,0.39532903,21302.0,21300.0,0.0349]
[1673969334132,0.48632903,21302.0,21300.0,0.504383]
[1673969334873,0.48132903,21302.0,21300.0,0.504383]
[1673969336476,0.48132903,21302.0,21300.0,0.0349]
[1673969337277,0.48132903,21302.0,21298.0,0.0748]
[1673969337278,0.61314148,21302.0,21298.0,0.0748]
[1673969337538,1.06376203,21301.0,21296.0,0.469551]
[1673969337823,1.06376203,21301.0,21295.0,0.544478]
[1673969337824,1.85275003,21300.0,21295.0,0.544478]
[1673969338076,0.13181245,21299.0,21295.0,1.014057]
[1673969338345,0.60131945,21299.0,21295.0,1.014057]
[1673969338598,1.2073451,21299.0,21295.0,0.544478]
[1673969338851,0.60720786,21298.0,21294.0,0.469595]
[1673969339105,0.469551,21297.0,21294.0,0.469595]
[1673969339364,0.60136345,21297.0,21294.0,0.469595]
[1673969339602,0.469551,21297.0,21294.0,0.469595]
[1673969340421,0.59550033,21297.0,21294.0,0.469595]
[1673969340791,1.06504933,21297.0,21293.0,0.32103861]
[1673969340974,0.9391,21297.0,21294.0,0.19072595]
[1673969341230,0.45720786,21298.0,21294.0,0.19072595]
[1673969341480,0.091,21297.0,21294.0,0.66033095]
[1673969341726,0.091,21297.0,21294.0,0.939216]
[1673969342218,0.45720786,21298.0,21294.0,0.939216]
[1673969342488,0.091,21297.0,21294.0,1.12994195]
[1673969342740,0.45720786,21298.0,21295.0,0.396086]
[1673969343004,0.89843471,21303.0,21296.0,0.321286]
[1673969343005,1.06889004,21303.0,21296.0,0.321286]
[1673969343268,0.409588,21301.0,21297.0,0.58651195]
[1673969343515,1.50785858,21303.0,21297.0,0.19072595]
[1673969343771,0.938949,21301.0,21298.0,0.19072595]
[1673969344025,0.74923348,21300.0,21296.0,0.469558]
[1673969344276,0.74923348,21300.0,21296.0,0.0743]
[1673969344277,1.02042351,21300.0,21296.0,0.0743]
[1673969344528,0.939015,21299.0,21297.0,0.001]
[1673969344797,0.321286,21298.0,21295.0,0.21136748]
[1673969345050,0.13181245,21298.0,21295.0,0.21136748]
[1673969345297,0.46954,21298.0,21295.0,0.21136748]
[1673969345556,0.939067,21298.0,21295.0,0.21136748]
[1673969346104,1.07087945,21298.0,21294.0,0.469597]
[1673969346358,1.07087945,21298.0,21292.0,0.0748]
[1673969346359,0.6666291,21297.0,21292.0,0.469647]
[1673969346620,0.13181245,21296.0,21295.0,0.001]
[1673969346881,0.469576,21296.0,21295.0,0.001]
[1673969347178,0.939147,21296.0,21292.0,0.469647]
[1673969347413,1.07095945,21296.0,21295.0,0.001]
[1673969347652,1.07095945,21296.0,21292.0,1.1865926]
[1673969347653,0.469576,21296.0,21292.0,1.1865926]
[1673969347911,0.469576,21296.0,21295.0,0.001]
[1673969347912,0.87603192,21296.0,21295.0,0.001]
[1673969348151,0.66121947,21296.0,21292.0,1.1865926]
[1673969348399,0.13181245,21295.0,21292.0,0.2482866]
[1673969348658,0.60141345,21295.0,21292.0,0.001]
[1673969349152,0.98359106,21295.0,21291.0,1.003714]
[1673969349412,2.04410965,21295.0,21291.0,1.003714]
[1673969349927,2.03646595,21295.0,21291.0,0.469669]
[1673969350464,2.03646595,21295.0,21290.0,0.939373]
[1673969350720,0.15,21294.0,21292.0,0.001]
[1673969351014,0.15,21294.0,21290.0,1.13009895]
[1673969351015,0.619617,21294.0,21290.0,0.66041095]
[1673969351245,1.39901338,21293.0,21291.0,0.001]
[1673969351483,0.321286,21292.0,21289.0,0.469714]
[1673969351743,0.321286,21292.0,21288.0,0.469731]
[1673969351744,0.13181245,21291.0,21288.0,0.469731]
[1673969351998,0.60149745,21291.0,21288.0,0.469731]
[1673969352253,0.60149745,21291.0,21287.0,0.469751]
[1673969352510,1.06061059,21291.0,21290.0,0.001]
[1673969352768,1.07117945,21291.0,21290.0,0.001]
[1673969353021,0.939367,21291.0,21290.0,0.001]
[1673969353276,1.96275233,21291.0,21290.0,0.001]
[1673969353573,3.02126647,21291.0,21286.0,0.01228439]
[1673969353793,0.1495,21287.0,21286.0,0.01228439]
[1673969354048,1.71993914,21287.0,21286.0,0.01228439]
[1673969354325,0.791056,21287.0,21286.0,0.01228439]
[1673969354587,0.9292382,21289.0,21286.0,0.01228439]
[1673969354859,0.47012506,21289.0,21286.0,0.01228439]
[1673969355890,0.00038306,21289.0,21288.0,0.1495]
[1673969356229,0.00038306,21289.0,21288.0,0.470786]
[1673969356428,0.00038306,21289.0,21288.0,0.396186]
[1673969356681,0.00038306,21289.0,21286.0,0.2548876]
[1673969356939,0.45309845,21288.0,21286.0,0.01228439]
[1673969357193,0.321286,21287.0,21286.0,0.01228439]
[1673969357446,1.39862514,21288.0,21286.0,0.01228439]
[1673969357702,0.93612229,21289.0,21286.0,0.20301034]
[1673969357703,0.3842206,21289.0,21286.0,0.20301034]
[1673969357953,0.00038306,21289.0,21286.0,0.20301034]
[1673969358207,0.30457242,21289.0,21286.0,0.01228439]
[1673969358455,0.091,21289.0,21286.0,0.01228439]
[1673969358711,1.39856014,21290.0,21286.0,0.01228439]
[1673969358987,0.86557469,21289.0,21286.0,0.01228439]
[1673969359244,0.512286,21288.0,21286.0,0.01228439]
[1673969359485,1.260826,21287.0,21286.0,0.01228439]
[1673969361056,2.42184083,21287.0,21286.0,0.01228439]
[1673969361341,2.85365328,21287.0,21286.0,0.01228439]
[1673969361562,2.74830885,21287.0,21286.0,0.01228439]
[1673969361808,2.99170885,21287.0,21286.0,8.439e-05]
[1673969362067,0.15,21286.0,21283.0,0.01272511]
[1673969362326,0.0749,21284.0,21283.0,0.01272511]
[1673969362575,2.57217283,21284.0,21283.0,0.01272511]
[1673969363083,2.27217283,21284.0,21283.0,0.01272511]
[1673969363341,3.05084291,21284.0,21283.0,0.01272511]
[1673969363596,2.66317283,21284.0,21283.0,0.01272511]
[1673969363916,2.89809283,21284.0,21283.0,0.01272511]
[1673969364376,3.35698132,21284.0,21283.0,0.01272511]
[1673969364634,2.50077532,21284.0,21283.0,0.01272511]
[1673969364923,2.17895963,21284.0,21283.0,0.01272511]
[1673969365191,0.091,21284.0,21283.0,0.01272511]
[1673969365457,0.66082842,21284.0,21283.0,0.01272511]
[1673969365708,1.13066442,21284.0,21283.0,0.01272511]
[1673969365991,1.50787369,21284.0,21283.0,0.01272511]
[1673969366245,2.28827283,21284.0,21283.0,0.01272511]
[1673969366576,2.81317283,21284.0,21283.0,0.01272511]
[1673969366768,2.66317283,21284.0,21283.0,0.01272511]
[1673969367021,3.05136663,21284.0,21283.0,0.01272511]
[1673969367803,3.20136663,21284.0,21283.0,0.01272511]
[1673969368299,3.27626663,21284.0,21283.0,0.01272511]
[1673969368796,2.79707283,21284.0,21283.0,0.01272511]
[1673969369058,2.88807283,21284.0,21283.0,0.01272511]
[1673969369286,2.80557283,21284.0,21283.0,0.01272511]
[1673969369565,2.89657283,21284.0,21283.0,0.01272511]
[1673969370642,2.73807283,21284.0,21283.0,0.01272511]
[1673969371389,2.43807283,21284.0,21283.0,0.01272511]
[1673969371740,1.82915969,21284.0,21283.0,0.01272511]
[1673969372676,1.50787369,21284.0,21283.0,0.01272511]
[1673969372936,0.091,21284.0,21283.0,0.07924511]
[1673969373195,0.0908972,21284.0,21281.0,0.86719958]
[1673969373446,0.0908972,21284.0,21281.0,1.33710158]
[1673969373713,0.0908972,21284.0,21282.0,0.321286]
[1673969373968,0.0908972,21284.0,21281.0,0.939787]
[1673969373969,0.47246426,21283.0,21280.0,0.05]
[1673969374249,1.07414371,21283.0,21280.0,0.05]
[1673969374489,0.94233126,21283.0,21280.0,0.05]
[1673969375248,0.94233126,21283.0,21281.0,0.321286]
[1673969375525,0.94233126,21283.0,21280.0,0.05]
[1673969376037,1.02633126,21283.0,21280.0,0.051]
[1673969376292,1.41218926,21283.0,21280.0,0.05]
[1673969377303,1.49618926,21283.0,21281.0,0.001]
[1673969378065,0.47246426,21283.0,21280.0,0.519911]
[1673969378316,0.55646426,21283.0,21281.0,0.321286]
[1673969378571,0.47246426,21283.0,21282.0,0.321286]
[1673969378825,0.55646426,21283.0,21281.0,0.470894]
[1673969379336,0.55646426,21283.0,21282.0,0.321286]
[1673969379589,0.55646426,21283.0,21281.0,0.470894]
[1673969379845,0.65207579,21283.0,21280.0,0.519906]
[1673969380087,0.65207579,21283.0,21280.0,0.989817]
[1673969380088,0.60427671,21283.0,21280.0,0.989817]
[1673969380337,0.47246426,21283.0,21280.0,0.519906]
[1673969380586,0.55646426,21283.0,21282.0,0.001]
[1673969380842,1.02632826,21283.0,21282.0,0.001]
[1673969381366,0.55646426,21283.0,21282.0,0.001]
[1673969381633,0.084,21283.0,21282.0,0.1343]
[1673969381974,0.084,21283.0,21282.0,1.395346]
[1673969383002,0.3,21284.0,21282.0,1.394346]
[1673969383271,0.47969352,21286.0,21282.0,1.394346]
[1673969383272,0.3,21283.0,21282.0,1.00628]
[1673969383558,0.384,21283.0,21282.0,1.00628]
[1673969383816,0.384,21283.0,21281.0,0.66708315]
[1673969384071,0.3,21283.0,21281.0,0.66708315]
[1673969384345,0.384,21283.0,21282.0,0.388806]
[1673969385126,0.384,21283.0,21282.0,0.933586]
[1673969385941,0.3,21283.0,21282.0,1.402466]
[1673969386162,0.384,21283.0,21282.0,1.402466]
[1673969386401,0.3,21283.0,21282.0,1.402466]
[1673969386675,0.384,21283.0,21282.0,0.933586]
[1673969389506,0.384,21283.0,21282.0,1.403466]
[1673969390295,0.384,21283.0,21282.0,1.770266]
[1673969390546,0.384,21283.0,21282.0,1.477766]
[1673969391114,0.36787794,21283.0,21282.0,1.477766]
[1673969391376,0.28387794,21283.0,21282.0,0.470486]
[1673969391643,0.36087794,21283.0,21282.0,0.396586]
[1673969391917,0.28387794,21283.0,21280.0,0.05]
[1673969392206,0.77706004,21282.0,21280.0,0.05]
[1673969392522,1.71686404,21281.0,21280.0,0.05]
[1673969392780,1.86686404,21281.0,21280.0,0.05]
[1673969393041,1.26109,21281.0,21280.0,0.05]
[1673969393299,0.939804,21281.0,21280.0,0.05]
[1673969393555,1.26109,21281.0,21280.0,0.05]
[1673969393840,1.37720544,21282.0,21280.0,0.05]
[1673969393841,0.90000375,21282.0,21280.0,0.05]
[1673969394352,0.09,21281.0,21280.0,0.05]